[Event "2nd Cambridge Open 2024"]
[Site "Cambridge"]
[Date "2024.02.20"]
[Round "3.21"]
[White "Rida, Ruqayyah"]
[Black "Bharat Kumar, Balahari"]
[Result "0-1"]
[ECO "B90"]
[WhiteElo "1743"]
[BlackElo "1995"]
[Annotator "RC"]
[PlyCount "220"]
[EventDate "2024.02.18"]
[EventType "swiss"]
[EventCountry "ENG"]
[SourceTitle "playchess.com"]
[Source "ChessBase"]
[SourceQuality "1"]
[TimeControl "5400+30"]

1. e4 {[%emt 0:00:02]} c5 {[%emt 0:01:50]} 2. Nf3 {[%emt 0:00:14]} d6 {[%emt 0:00:13]} 3. d4 {[%emt 0:00:07]} cxd4 {[%emt 0:00:06]} 4. Nxd4 {[%emt 0:00:12]} Nf6 {[%emt 0:00:20]} 5. Nc3 {[%emt 0:00:09]} a6 {[%emt 0:00:05]} 6. f3 {[%emt 0:00:16]} h5 {[%emt 0:00:09]} 7. Be3 {[%emt 0:00:21]} e6 {[%emt 0:00:08]} 8. Qd2 {[%emt 0:00:37]} Be7 {[%emt 0:00:08]} 9. O-O-O {[%emt 0:00:42]} b5 {[%emt 0:00:08]} 10. Kb1 {[%emt 0:01:19]} Bb7 {[%emt 0:06:49]} 11. a3 {[%emt 0:00:32]} Nbd7 {[%emt 0:00:17]} 12. Rg1 {[%emt 0:06:28]} Rc8 {[%emt 0:03:17]} 13. h3 {[%emt 0:06:01]} d5 {[%emt 0:16:52]} 14. exd5 {[%emt 0:03:13]} Nxd5 {[%emt 0:02:24]} 15. Nxd5 {[%emt 0:01:20]} Bxd5 {[%emt 0:00:08]} 16. Nf5 {[%emt 0:02:46]} O-O {[%emt 0:01:49]} 17. Nxe7+ {[%emt 0:12:23]} Qxe7 {[%emt 0:00:09]} 18. Bd3 {[%emt 0:04:10]} Ne5 {[%emt 0:09:09]} 19. Bd4 {[%emt 0:04:29]} Nc4 {[%emt 0:13:09]} 20. Bxc4 {[%emt 0:04:50]} Rxc4 {[%emt 0:01:13]} 21. Rge1 {[%emt 0:07:11]} f6 {[%emt 0:16:39]} 22. Bc3 {[%emt 0:03:46]} Qc7 {[%emt 0:11:52]} 23. Ba5 {[%emt 0:01:37]} Qf4 {[%emt 0:03:10]} 24. Qxf4 {[%emt 0:01:27]} Rxf4 {[%emt 0:00:02]} 25. b3 {[%emt 0:01:13]} h4 {[%emt 0:01:02]} 26. Bc7 {[%emt 0:02:19]} Rf5 {[%emt 0:01:54]} 27. Rd4 {[%emt 0:03:58]} Rc8 {[%emt 0:00:21]} 28. Bd6 {[%emt 0:01:17]} Rg5 {[%emt 0:02:52]} 29. Re2 {[%emt 0:00:35]} Rh5 {[%emt 0:00:49]} 30. Kb2 {[%emt 0:02:39]} Kf7 {[%emt 0:00:53]} 31. Bb4 {[%emt 0:05:22]} Rhh8 {[%emt 0:03:06]} 32. Bc3 {[%emt 0:06:07]} g5 {[%emt 0:02:29]} 33. f4 {[%emt 0:01:45]} Rhd8 {[%emt 0:02:36]} 34. Rf2 {[%emt 0:02:48]} g4 {[%emt 0:00:44]} 35. hxg4 {[%emt 0:00:15]} Bb7 {[%emt 0:00:33]} 36. Rb4 {[%emt 0:07:41]} Rd1 {[%emt 0:00:26]} 37. f5 {[%emt 0:00:45]} e5 {[%emt 0:00:21]} 38. g5 {[%emt 0:00:16]} e4 {[%emt 0:00:44]} 39. Bxf6 {[%emt 0:01:14]} e3 {[%emt 0:00:31]} 40. Re2 {[%emt 0:00:17]} Rd2 {[%emt 0:00:24]} 41. Rxd2 {[%emt 0:01:24]} exd2 {[%emt 0:00:03]} 42. Rd4 {[%emt 0:00:10]} Be4 {[%emt 0:00:27]} 43. Rxd2 {[%emt 0:02:03]} Bxf5 {[%emt 0:00:06]} 44. c3 {[%emt 0:00:37]} Re8 {[%emt 0:00:24]} 45. c4 {[%emt 0:00:37]} bxc4 {[%emt 0:01:19]} 46. bxc4 {[%emt 0:00:02]} Re4 {[%emt 0:00:42]} 47. Kc3 {[%emt 0:01:43]} Be6 {[%emt 0:00:36]} 48. Bd4 {[%emt 0:02:42]} Rg4 {[%emt 0:00:20]} 49. Rf2+ {[%emt 0:00:15]} Ke8 {[%emt 0:00:37]} 50. c5 {[%emt 0:00:52]} Rxg5 {[%emt 0:00:21]} 51. Re2 {[%emt 0:01:10]} Rg3+ {[%emt 0:00:12]} 52. Kb4 {[%emt 0:00:43]} Kf7 {[%emt 0:00:31]} 53. c6 {[%emt 0:00:45]} Rb3+ {[%emt 0:00:23]} 54. Kc5 {[%emt 0:00:43]} Rb5+ {[%emt 0:00:06]} 55. Kd6 {[%emt 0:00:23]} Rd5+ {[%emt 0:00:05]} 56. Kc7 {[%emt 0:00:22]} Rxd4 {[%emt 0:00:05]} 57. Rc2 {[%emt 0:01:09]} Rd3 {[%emt 0:02:17]} 58. Kb7 {[%emt 0:00:33]} Rxa3 {[%emt 0:00:25]} 59. c7 {[%emt 0:00:14]} Rb3+ {[%emt 0:00:09]} 60. Ka8 {[%emt 0:00:44]} Bc8 {[%emt 0:00:54]} 61. Rd2 {[%emt 0:00:18]} Rb7 {[%emt 0:00:32]} 62. Rd4 {[%emt 0:00:44]} Rxc7 {[%emt 0:00:15]} 63. Rxh4 {[%emt 0:00:06]} Kg6 {[%emt 0:00:25]} 64. Kb8 {[%emt 0:00:31]} Rc2 {[%emt 0:00:36]} 65. Ra4 {[%emt 0:00:53]} Kg5 {[%emt 0:00:18]} 66. Rd4 {[%emt 0:00:30]} Bf5 {[%emt 0:00:58]} 67. Rd5 {[%emt 0:00:32]} Ra2 {[%emt 0:00:28]} 68. Kb7 {[%emt 0:00:28]} Kf4 {[%emt 0:00:31]} 69. Kb6 {[%emt 0:00:12]} Be4 {[%emt 0:00:32]} 70. Ra5 {[%emt 0:00:21]} Rb2+ {[%emt 0:00:29]} 71. Kxa6 {[%emt 0:00:25]} Bxg2 {[%emt 0:00:09]} 72. Ra4+ {[%emt 0:00:12]} Ke5 {[%emt 0:00:08]} 73. Ka5 {[%emt 0:00:21]} Rb8 {[%emt 0:00:52]} 74. Rb4 {[%emt 0:00:47]} Ra8+ {[%emt 0:00:10]} 75. Kb6 {[%emt 0:00:29]} Kd6 {[%emt 0:00:09]} 76. Rg4 {[%emt 0:00:54]} Rb8+ {[%emt 0:00:38]} 77. Ka7 {[%emt 0:00:37]} Rb7+ {[%emt 0:00:20]} 78. Ka6 {[%emt 0:00:18]} Rb2 {[%emt 0:00:12]} 79. Rg6+ {[%emt 0:00:16]} Kc5 {[%emt 0:00:10]} 80. Ka7 {[%emt 0:00:55]} Bd5 {[%emt 0:00:52]} 81. Rg1 {[%emt 0:00:45]} Rb7+ {[%emt 0:01:41]} 82. Ka6 {[%emt 0:00:15]} Rb8 {[%emt 0:00:34]} 83. Rg7 {[%emt 0:00:27]} Ra8+ {[%emt 0:00:33]} 84. Ra7 {[%emt 0:00:08]} Rb8 {[%emt 0:00:12]} 85. Rg7 {[%emt 0:00:32]} Bc4+ {[%emt 0:00:40]} 86. Ka7 {[%emt 0:00:09]} Rb1 {[%emt 0:00:33]} 87. Rb7 {[%emt 0:00:46]} Ra1+ {[%emt 0:00:12]} 88. Kb8 {[%emt 0:00:07]} Bd5 {[%emt 0:00:18]} 89. Ra7 {[%emt 0:00:25]} Rh1 {[%emt 0:00:46]} 90. Rc7+ {[%emt 0:00:25]} Bc6 {[%emt 0:00:15]} 91. Rc8 {[%emt 0:01:43]} Kb6 {[%emt 0:00:42]} 92. Rc7 {[%emt 0:00:32]} Rh8+ {[%emt 0:00:20]} 93. Rc8 {[%emt 0:00:08]} Rh7 {[%emt 0:00:52]} 94. Rc7 {[%emt 0:00:24]} Rh8+ {[%emt 0:00:05]} 95. Rc8 {[%emt 0:00:04]} Rh2 {[%emt 0:00:14]} 96. Rc7 {[%emt 0:00:10]} Ra2 {[%emt 0:00:12]} 97. Rb7+ {[%emt 0:00:16]} Kc5 {[%emt 0:02:14]} 98. Ra7 {[%emt 0:01:23]} Rb2+ {[%emt 0:00:00]} 99. Kc7 {[%emt 0:00:44]} Rg2 {[%emt 0:00:00]} 100. Ra1 {[%emt 0:00:42]} Rg7+ {[%emt 0:00:00]} 101. Kb8 {[%emt 0:00:34]} Kd6 {[%emt 0:00:15]} 102. Rd1+ {[%emt 0:00:32]} Bd5 {[%emt 0:00:04]} 103. Rc1 {[%emt 0:00:24]} Rb7+ {[%emt 0:01:58]} 104. Kc8 {[%emt 0:00:27]} Ra7 {[%emt 0:00:07]} 105. Kd8 {[%emt 0:00:26]} Rd7+ {[%emt 0:00:51]} 106. Kc8 {[%emt 0:00:32]} Rg7 {[%emt 0:00:42]} 107. Kb8 {[%emt 0:00:26]} Rg8+ {[%emt 0:00:11]} 108. Rc8 {[%emt 0:00:25]} Rg2 {[%emt 0:00:11]} 109. Rc1 {[%emt 0:00:52]} Ra2 {[%emt 0:00:34]} 110. Rc7 {[%emt 0:00:33]} Ra8# {[%emt 0:00:12]} 0-1

[Event "2nd Cambridge Open 2024"]
[Site "Cambridge"]
[Date "2024.02.20"]
[Round "3.22"]
[White "Ward, Ieuan C"]
[Black "Zhang, Junyi"]
[Result "1/2-1/2"]
[ECO "D40"]
[WhiteElo "2028"]
[BlackElo "1655"]
[Annotator "RC"]
[PlyCount "142"]
[EventDate "2024.02.18"]
[EventType "swiss"]
[EventCountry "ENG"]
[SourceTitle "playchess.com"]
[Source "ChessBase"]
[SourceQuality "1"]
[TimeControl "5400+30"]

1. d4 {[%emt 0:00:03]} Nf6 {[%emt 0:00:35]} 2. Nf3 {[%emt 0:00:07]} e6 {[%emt 0:00:55]} 3. c4 {[%emt 0:00:13]} d5 {[%emt 0:00:17]} 4. Nc3 {[%emt 0:00:06]} dxc4 {[%emt 0:00:38]} 5. e3 {[%emt 0:01:26]} a6 {[%emt 0:00:35]} 6. Bxc4 {[%emt 0:00:10]} b5 {[%emt 0:00:14]} 7. Bd3 {[%emt 0:00:54]} Bb7 {[%emt 0:00:14]} 8. O-O {[%emt 0:00:17]} c5 {[%emt 0:00:23]} 9. a3 {[%emt 0:02:03]} Nc6 {[%emt 0:02:15]} 10. dxc5 {[%emt 0:01:14]} Bxc5 {[%emt 1:29:24]} 11. b4 {[%emt 0:01:46]} Be7 {[%emt 0:00:00]} 12. Bb2 {[%emt 0:01:20]} Qb6 {[%emt 0:00:00]} 13. Qe2 {[%emt 1:27:21]} Rd8 {[%emt 0:00:00]} 14. Rfd1 {[%emt 0:00:00]} Qc7 {[%emt 0:00:00]} 15. Rac1 {[%emt 0:00:00]} O-O {[%emt 0:00:00]} 16. Ng5 {[%emt 0:00:00]} h6 {[%emt 0:00:00]} 17. Nge4 {[%emt 0:00:00]} Nxe4 {[%emt 0:00:00]} 18. Nxe4 {[%emt 0:00:00]} f5 {[%emt 0:00:00]} 19. Nc5 {[%emt 0:00:00]} Bxc5 {[%emt 0:00:00]} 20. Rxc5 {[%emt 0:00:00]} Qe7 {[%emt 0:00:00]} 21. Bc2 {[%emt 0:00:00]} Qg5 {[%emt 0:00:00]} 22. f4 {[%emt 0:00:00]} Qg6 {[%emt 0:00:00]} 23. Rf1 {[%emt 0:00:00]} Nb8 {[%emt 0:00:00]} 24. Bb3 {[%emt 0:00:00]} Be4 {[%emt 0:00:00]} 25. Rf2 {[%emt 0:00:00]} Nc6 {[%emt 0:00:00]} 26. Bc2 {[%emt 0:00:00]} Bd5 {[%emt 0:00:00]} 27. Qe1 {[%emt 0:00:00]} Rd7 {[%emt 0:00:00]} 28. h3 {[%emt 0:00:00]} Rfd8 {[%emt 0:02:12]} 29. Kh2 {[%emt 0:00:00]} h5 {[%emt 0:01:10]} 30. g3 {[%emt 0:00:00]} Ne7 {[%emt 0:01:16]} 31. Bd4 {[%emt 0:00:02]} Nc6 {[%emt 0:00:23]} 32. Bc3 {[%emt 0:00:10]} Ne7 {[%emt 0:00:17]} 33. a4 {[%emt 0:01:40]} Bc4 {[%emt 0:01:01]} 34. e4 {[%emt 0:00:40]} Bd3 {[%emt 0:00:42]} 35. axb5 {[%emt 0:04:49]} axb5 {[%emt 0:01:16]} 36. Bxd3 {[%emt 0:00:45]} Rxd3 {[%emt 0:00:02]} 37. Re2 {[%emt 0:01:35]} h4 {[%emt 0:03:58]} 38. gxh4 {[%emt 0:01:01]} Rd1 {[%emt 0:00:13]} 39. Qf2 {[%emt 0:00:10]} R8d3 {[%emt 0:00:37]} 40. Re3 {[%emt 0:01:53]} Rxe3 {[%emt 0:01:13]} 41. Qxe3 {[%emt 0:00:02]} Qe8 {[%emt 0:00:32]} 42. Qe2 {[%emt 0:00:52]} Qd7 {[%emt 0:00:09]} 43. Qg2 {[%emt 0:00:41]} g6 {[%emt 0:00:23]} 44. exf5 {[%emt 0:00:15]} exf5 {[%emt 0:00:10]} 45. h5 {[%emt 0:00:38]} Qd6 {[%emt 0:00:16]} 46. Qa8+ {[%emt 0:00:29]} Kf7 {[%emt 0:00:06]} 47. Qf3 {[%emt 0:00:46]} Rc1 {[%emt 0:00:19]} 48. hxg6+ {[%emt 0:00:18]} Qxg6 {[%emt 0:00:11]} 49. Bd4 {[%emt 0:00:11]} Rxc5 {[%emt 0:00:46]} 50. Bxc5 {[%emt 0:00:41]} Qc6 {[%emt 0:00:08]} 51. Qh5+ {[%emt 0:00:29]} Qg6 {[%emt 0:03:10]} 52. Qh8 {[%emt 0:00:20]} Ng8 {[%emt 0:00:00]} 53. Qe5 {[%emt 0:00:17]} Qe6 {[%emt 0:00:00]} 54. Qc7+ {[%emt 0:00:19]} Kg6 {[%emt 0:00:00]} 55. Qd8 {[%emt 0:00:58]} Nf6 {[%emt 0:00:00]} 56. Qd3 {[%emt 0:00:41]} Qa2+ {[%emt 0:00:08]} 57. Kg1 {[%emt 0:00:12]} Qa1+ {[%emt 0:01:09]} 58. Kg2 {[%emt 0:00:45]} Qb2+ {[%emt 0:00:31]} 59. Kg1 {[%emt 0:00:34]} Qa1+ {[%emt 0:00:07]} 60. Kh2 {[%emt 0:00:20]} Qb2+ {[%emt 0:00:14]} 61. Kg1 {[%emt 0:00:44]} Qc1+ {[%emt 0:00:28]} 62. Qf1 {[%emt 0:00:11]} Qxf1+ {[%emt 0:00:05]} 63. Kxf1 {[%emt 0:00:03]} Nd5 {[%emt 0:00:05]} 64. Bd6 {[%emt 0:01:10]} Kf6 {[%emt 0:00:04]} 65. h4 {[%emt 0:00:11]} Ke6 {[%emt 0:00:11]} 66. Be5 {[%emt 0:00:34]} Nxb4 {[%emt 0:00:25]} 67. h5 {[%emt 0:00:05]} Kf7 {[%emt 0:00:06]} 68. Ke2 {[%emt 0:00:22]} Nc6 {[%emt 0:00:22]} 69. Kd3 {[%emt 0:00:26]} Kg8 {[%emt 0:00:18]} 70. Bf6 {[%emt 0:00:51]} Kh7 {[%emt 0:00:11]} 71. Bg5 {[%emt 0:00:08]} Kg7 {[%emt 0:00:09]} 1/2-1/2

[Event "2nd Cambridge Open 2024"]
[Site "Cambridge"]
[Date "2024.02.20"]
[Round "3.23"]
[White "Blauhut, Holger"]
[Black "Wynarczyk, Raymond"]
[Result "1/2-1/2"]
[ECO "C41"]
[WhiteElo "2016"]
[BlackElo "1703"]
[Annotator "RC"]
[PlyCount "90"]
[EventDate "2024.02.18"]
[EventType "swiss"]
[EventCountry "ENG"]
[SourceTitle "playchess.com"]
[Source "ChessBase"]
[SourceQuality "1"]
[TimeControl "5400+30"]

1. e4 {[%emt 0:00:05]} d6 {[%emt 0:00:16]} 2. d4 {[%emt 0:00:15]} Nf6 {[%emt 0:00:08]} 3. Nc3 {[%emt 0:00:04]} Nbd7 {[%emt 0:00:08]} 4. Nf3 {[%emt 0:01:13]} e5 {[%emt 0:00:09]} 5. Bc4 {[%emt 0:00:08]} Be7 {[%emt 0:00:06]} 6. O-O {[%emt 0:00:39]} O-O {[%emt 0:00:09]} 7. a4 {[%emt 0:02:40]} c6 {[%emt 0:00:47]} 8. h3 {[%emt 0:00:43]} Qc7 {[%emt 0:03:25]} 9. a5 {[%emt 0:02:44]} exd4 {[%emt 0:00:27]} 10. Nxd4 {[%emt 0:01:32]} Ne5 {[%emt 0:00:16]} 11. Be2 {[%emt 0:05:22]} Re8 {[%emt 0:05:15]} 12. f4 {[%emt 0:02:41]} Ng6 {[%emt 0:00:40]} 13. f5 {[%emt 0:01:14]} Ne5 {[%emt 0:02:10]} 14. Bf4 {[%emt 0:00:38]} Rb8 {[%emt 0:08:00]} 15. g4 {[%emt 0:17:00]} h6 {[%emt 0:01:46]} 16. h4 {[%emt 0:20:57]} Nh7 {[%emt 0:02:42]} 17. Qe1 {[%emt 0:00:39]} Qd8 {[%emt 0:03:38]} 18. Nf3 {[%emt 0:07:25]} Nxf3+ {[%emt 0:05:07]} 19. Bxf3 {[%emt 0:00:23]} Bxh4 {[%emt 0:00:53]} 20. Qd2 {[%emt 0:00:10]} Bg5 {[%emt 0:04:05]} 21. Qxd6 {[%emt 0:01:42]} Ra8 {[%emt 0:05:13]} 22. Qxd8 {[%emt 0:02:25]} Rxd8 {[%emt 0:01:04]} 23. Bxg5 {[%emt 0:00:18]} Nxg5 {[%emt 0:00:31]} 24. Bg2 {[%emt 0:00:09]} f6 {[%emt 0:05:12]} 25. Rfd1 {[%emt 0:05:09]} Bd7 {[%emt 0:02:03]} 26. Na4 {[%emt 0:06:09]} Be8 {[%emt 0:01:30]} 27. Kf2 {[%emt 0:00:38]} h5 {[%emt 0:00:38]} 28. Kg3 {[%emt 0:01:06]} hxg4 {[%emt 0:05:24]} 29. Kxg4 {[%emt 0:00:21]} Nf7 {[%emt 0:00:49]} 30. Nc5 {[%emt 0:05:53]} Ne5+ {[%emt 0:05:09]} 31. Kg3 {[%emt 0:00:48]} b6 {[%emt 0:06:22]} 32. axb6 {[%emt 0:02:21]} Rxd1 {[%emt 0:03:48]} 33. b7 {[%emt 0:00:35]} Rdd8 {[%emt 0:00:18]} 34. bxa8=Q {[%emt 0:00:43]} Rxa8 {[%emt 0:00:25]} 35. b3 {[%emt 0:01:30]} Bf7 {[%emt 0:07:58]} 36. Bf1 {[%emt 0:01:36]} a5 {[%emt 0:01:45]} 37. Ba6 {[%emt 0:03:35]} Nd7 {[%emt 0:03:48]} 38. Nxd7 {[%emt 0:00:09]} Rxa6 {[%emt 0:00:16]} 39. Nc5 {[%emt 0:00:05]} Ra7 {[%emt 0:01:37]} 40. Ra4 {[%emt 0:00:59]} g6 {[%emt 0:02:16]} 41. fxg6 {[%emt 0:00:28]} Bxg6 {[%emt 0:00:16]} 42. b4 {[%emt 0:00:06]} Rg7 {[%emt 0:00:36]} 43. Kf4 {[%emt 0:01:36]} axb4 {[%emt 0:00:23]} 44. Rxb4 {[%emt 0:00:03]} Re7 {[%emt 0:03:11]} 45. Rb8+ {[%emt 0:03:05]} Be8 {[%emt 0:01:05]} 1/2-1/2

[Event "2nd Cambridge Open 2024"]
[Site "Cambridge"]
[Date "2024.02.20"]
[Round "3.24"]
[White "McMahon, Paul"]
[Black "Abhyuday, Santhosh"]
[Result "0-1"]
[ECO "B23"]
[WhiteElo "1862"]
[BlackElo "2058"]
[Annotator "NA RC"]
[PlyCount "66"]
[EventDate "2024.02.18"]
[EventType "swiss"]
[EventCountry "ENG"]
[SourceTitle "playchess.com"]
[Source "ChessBase"]
[SourceQuality "1"]
[TimeControl "5400+30"]

1. e4 {[%emt 0:00:05]} c5 {[%emt 0:07:10]} 2. Nc3 {[%emt 0:03:15]} d6 {[%emt 1:24:20]} 3. f4 {[%emt 0:00:22]} g6 {[%emt 0:00:00]} 4. Bc4 {[%emt 0:00:36]} Bg7 {[%emt 0:00:00]} 5. Nf3 {[%emt 0:01:19]} Nc6 {[%emt 0:00:00]} 6. O-O {[%emt 0:01:03]} e6 {[%emt 0:00:00]} 7. d3 {[%emt 0:07:04]} Nge7 {[%emt 0:00:00]} 8. Qe1 {[%emt 0:03:52]} O-O {[%emt 0:00:00]} 9. Bb3 {[%emt 0:04:10]} Bd7 {[%emt 0:00:00]} 10. Be3 {[%emt 0:01:19]} b6 {[%emt 0:00:00]} 11. Qh4 {[%emt 0:07:43]} Rb8 {[%emt 0:00:00]} 12. g4 {[%emt 0:09:30]} d5 {[%emt 0:00:00]} 13. f5 {[%emt 0:09:41]} d4 {[%emt 0:00:00]} 14. Bh6 {[%emt 0:01:35]} Nxf5 {[%emt 0:00:00]} 15. Qxd8 {[%emt 0:13:53]} Rbxd8 {[%emt 0:00:00]} 16. Bg5 {[%emt 0:01:33]} Nfe7 {[%emt 0:00:00]} 17. Nd5 {[%emt 0:03:07]} f6 {[%emt 0:00:00]} 18. Nc7 {[%emt 0:14:01]} fxg5 {[%emt 0:00:00]} 19. Nxe6 {[%emt 0:00:21]} Bxe6 {[%emt 0:00:00]} 20. Bxe6+ {[%emt 0:00:11]} Kh8 {[%emt 0:00:00]} 21. Nxg5 {[%emt 0:00:30]} Ne5 {[%emt 0:00:00]} 22. Rf7 {[%emt 0:08:48]} Rxf7 {[%emt 0:00:00]} 23. Nxf7+ {[%emt 0:00:17]} Nxf7 {[%emt 0:00:00]} 24. Bxf7 {[%emt 0:00:09]} Rf8 {[%emt 0:00:00]} 25. Rf1 {[%emt 0:00:55]} Nc6 {[%emt 0:00:00]} 26. h3 {[%emt 0:01:01]} Bh6 {[%emt 0:00:00]} 27. Bd5 {[%emt 0:01:03]} Rxf1+ {[%emt 0:00:00]} 28. Kxf1 {[%emt 0:00:06]} Ne5 {[%emt 0:00:00]} 29. Kg2 {[%emt 0:00:15]} Kg7 {[%emt 0:00:00]} 30. Kg3 {[%emt 0:00:24]} Bc1 {[%emt 0:00:00]} 31. b3 {[%emt 0:00:25]} Kf6 {[%emt 0:00:00]} 32. a4 {[%emt 0:00:54]} g5 {[%emt 0:00:00]} 33. h4 {[%emt 0:00:37]} gxh4+ {[%emt 0:00:00]} 0-1

[Event "2nd Cambridge Open 2024"]
[Site "Cambridge"]
[Date "2024.02.20"]
[Round "3.25"]
[White "Mihalik, Agoston"]
[Black "Ghasi, Ameet K"]
[Result "0-1"]
[ECO "B40"]
[WhiteElo "2146"]
[BlackElo "2509"]
[Annotator "TA"]
[PlyCount "73"]
[EventDate "2024.02.18"]
[EventType "swiss"]
[EventCountry "ENG"]
[SourceTitle "playchess.com"]
[Source "ChessBase"]
[SourceQuality "1"]
[TimeControl "5400+30"]

{[%evp 9,73,6,0,9,4,8,11,0,16,0,0,0,0,0,13,11,15,4,0,0,14,7,10,0,16,11,29,32,37,39,32,30,39,0,-7,-31,-29,-50,-48,-48,-29,-33,-32,-120,-93,-103,-107,-139,-126,-171,-164,-154,-107,-254,-254,-272,-273,-262,-266,-656,-655,-651,-662,-1252,-1182,-2221]} 1. e4 {[%emt 0:00:13]} c5 {[%emt 0:01:08]} 2. Nf3 {[%emt 0:00:15]} e6 {[%emt 0:00:10]} 3. g3 {[%emt 0:00:25]} Nc6 {[%emt 0:02:07]} 4. Bg2 {[%emt 0:00:11]} Nf6 {[%emt 0:00:10]} 5. Qe2 {[%emt 0:00:13]} e5 {[%emt 0:00:32]} 6. O-O {[%emt 0:01:01]} Be7 {[%emt 0:00:17]} 7. Na3 {[%emt 0:02:52]} O-O {[%emt 0:09:56]} 8. d3 {[%emt 0:00:40] The position is equal.} h6 {[%emt 0:03:03]} 9. Nc4 {[%emt 0:00:20]} d6 {[%emt 0:00:10]} 10. a4 {[%emt 0:10:26]} Re8 {[%emt 0:01:29]} 11. b3 {[%emt 0:01:55]} Bf8 {[%emt 0:02:15]} 12. Bb2 {[%emt 0:00:11]} g6 {[%emt 0:12:53]} 13. Ne3 {[%emt 0:10:07]} Bg7 {[%emt 0:07:28]} 14. Nd2 {[%emt 0:03:25][%cal Bf3d2,Bd2c4,Bc4e3][%mdl 32]} Nd4 {[%emt 0:04:02]} 15. Qd1 {[%emt 0:01:46]} h5 {[%emt 0:03:13]} 16. Ndc4 {[%emt 0:05:03]} Be6 {[%emt 0:18:51]} 17. c3 {[%emt 0:28:45]} Nc6 {[%emt 0:00:01]} 18. Nd5 {[%emt 0:00:20]} Bxd5 {[%emt 0:09:45]} 19. exd5 {[%emt 0:00:10]} Ne7 {[%emt 0:00:05]} 20. Ne3 {[%emt 0:00:17]} Qd7 {[%emt 0:00:22]} 21. a5 {[%emt 0:07:14]} (21. Ra2 $14) 21... b5 $11 {[%emt 0:05:53]} 22. a6 {[%emt 0:00:23]} Rab8 {[%emt 0:01:21]} 23. Ra5 {[%emt 0:07:26]} Bh6 {[%emt 0:03:31]} 24. Qe2 {[%emt 0:07:11]} Bxe3 {[%emt 0:06:22]} 25. fxe3 {[%emt 0:00:08]} Nfxd5 {[%emt 0:00:08]} (25... Nexd5 26. e4 $16) 26. e4 {[%emt 0:00:04]} ({White should try} 26. d4 $15) 26... Nc7 {[%emt 0:00:33]} 27. Bc1 {[%emt 0:01:42]} Nc6 {[%emt 0:01:05]} 28. Ra2 {[%emt 0:03:07]} b4 $36 {[%emt 0:00:28][%mdl 2048] White is under strong pressure.} 29. c4 {[%emt 0:00:04]} Nd4 {[%emt 0:00:05][%csl LRb3,LRe2]} 30. Qd1 {[%emt 0:00:02]} Qg4 {[%emt 0:01:17] Black is more active.} ({Better is} 30... Rb6 31. Bf3 Nde6 (31... Nxa6 32. Bxh5 gxh5 33. Qxh5 $11) (31... Rxa6 $2 32. Rxa6 Nxf3+ 33. Qxf3 $19)) 31. Qe1 {[%emt 0:00:01] White does not recover from this.} (31. Bf3 $17 {was the only defense.} Nxf3+ 32. Rxf3) 31... Nxb3 $19 {[%emt 0:01:52] A dynamic duo of knights.} 32. Bf3 {[%emt 0:01:34]} Qe6 {[%emt 0:01:14]} 33. Bg5 {[%emt 0:00:38]} Nd4 {[%emt 0:00:22]} 34. Bxh5 $2 {[%emt 0:00:06] [#]} (34. Bd1 b3 35. Rb2) 34... gxh5 {[%emt 0:00:23] Black is clearly winning.} 35. Raf2 {[%emt 0:00:33]} Qg4 {[%emt 0:00:13]} 36. Rxf7 {[%emt 0:05:58]} Qxg5 {[%emt 0:00:17]} 37. Rxc7 {[%emt 0:00:03] Weighted Error Value: White=0.56/Black=0.06 (flawless) .  Mistake:       	White=4     	Black=1      Inaccurate:     	White=1     	---        OK:         	White=14    	Black=12     Best:        	---       	Black=1} 0-1

[Event "2nd Cambridge Open 2024"]
[Site "Cambridge"]
[Date "2024.02.20"]
[Round "3.26"]
[White "Fava, Lorenzo"]
[Black "Hebden, Mark L"]
[Result "1-0"]
[ECO "C97"]
[WhiteElo "2084"]
[BlackElo "2416"]
[Annotator "TA"]
[PlyCount "89"]
[EventDate "2024.02.18"]
[EventType "swiss"]
[EventCountry "ENG"]
[SourceTitle "playchess.com"]
[Source "ChessBase"]
[SourceQuality "1"]
[TimeControl "5400+30"]

{[%evp 23,89,0,0,-8,-8,0,0,0,0,0,0,0,46,-23,0,-11,-11,-10,-4,-21,-18,-34,-14,0,0,0,0,0,0,-5,-12,-12,-3,-11,0,-8,0,0,0,0,0,0,0,0,0,0,0,0,0,0,0,0,0,0,371,370,371,368,742,672,714,691,6191,5817,6618,6431,5515,5406]} 1. e4 {[%emt 0:00:21]} e5 {[%emt 0:00:16]} 2. Nf3 {[%emt 0:00:08]} Nc6 {[%emt 0:00:13]} 3. Bb5 {[%emt 0:00:13]} a6 {[%emt 0:00:22]} 4. Ba4 {[%emt 0:00:25]} Nf6 {[%emt 0:00:08]} 5. O-O {[%emt 0:00:10]} Be7 {[%emt 0:00:39]} 6. Re1 {[%emt 0:00:12]} b5 {[%emt 0:00:18]} 7. Bb3 {[%emt 0:00:06]} d6 {[%emt 0:00:39]} 8. a4 {[%emt 0:11:26]} Bd7 {[%emt 0:00:18]} 9. c3 {[%emt 0:01:02]} O-O {[%emt 0:02:22]} 10. h3 {[%emt 0:04:32]} Na5 {[%emt 0:01:27]} 11. Bc2 {[%emt 0:00:05]} c5 {[%emt 0:00:21]} 12. d4 {[%emt 0:00:55]} Qc7 {[%emt 0:01:20]} 13. dxe5 {[%emt 0:12:40]} dxe5 {[%emt 0:00:11]} 14. Nbd2 {[%emt 0:00:35]} Rfd8 {[%emt 0:01:44]} 15. Qe2 {[%emt 0:00:49] The position is equal.} c4 {[%emt 0:06:18]} 16. axb5 {[%emt 0:08:14]} axb5 {[%emt 0:02:13]} 17. Nf1 {[%emt 0:01:10]} Nh5 {[%emt 0:04:24]} (17... Nb7 $11 18. Rxa8 Rxa8) 18. Be3 {[%emt 0:10:55]} ({Better is} 18. g4 $14 Nf6 19. Ne3) 18... g6 {[%emt 0:02:20]} (18... Nb7 $5) 19. Ng3 {[%emt 0:04:39]} Nxg3 {[%emt 0:02:48]} 20. fxg3 {[%emt 0:00:02]} Nb7 {[%emt 0:02:02]} 21. Rad1 {[%emt 0:04:08]} Nc5 {[%emt 0:03:48]} 22. Qf2 {[%emt 0:02:33]} Be6 {[%emt 0:03:38] Repels Rd5} 23. Ng5 {[%emt 0:02:13]} f6 {[%emt 0:02:52]} 24. Nxe6 {[%emt 0:05:36]} Nxe6 {[%emt 0:00:07]} 25. Kh2 {[%emt 0:03:18]} Qc6 {[%emt 0:02:02]} 26. Bb6 {[%emt 0:02:49]} Rxd1 {[%emt 0:03:06]} 27. Rxd1 {[%emt 0:02:49]} Ra2 {[%emt 0:02:28]} 28. Bb1 {[%emt 0:00:39]} Ra1 {[%emt 0:00:15]} 29. Be3 {[%emt 0:02:22]} Kf7 {[%emt 0:01:06]} (29... Kg7 {feels hotter.} 30. Rf1 Nc5 31. g4 Ra8) 30. Qd2 {[%emt 0:00:37]} Ra8 {[%emt 0:08:15]} 31. Bc2 {[%emt 0:03:31]} Rd8 {[%emt 0:01:31]} 32. Qe2 {[%emt 0:00:04]} Rxd1 {[%emt 0:00:39]} 33. Qxd1 {[%emt 0:00:06]} Bc5 {[%emt 0:00:27]} 34. Bxc5 {[%emt 0:10:22]} Nxc5 $11 {[%emt 0:02:20][%mdl 4096] Endgame. KQB-KQN} 35. Qd8 {[%emt 0:01:14]} Ne6 {[%emt 0:00:51]} 36. Qb8 {[%emt 0:00:59]} Qd7 {[%emt 0:00:23]} 37. b3 {[%emt 0:01:56][%cal Bb2b3,Bb3b4][%mdl 32]} Qd2 {[%emt 0:07:59]} 38. Qxb5 {[%emt 0:00:30]} Ng5 $2 {[%emt 0:00:15][%mdl 8192]} (38... Qxc2 $11 {and Black is okay.} 39. Qd7+ (39. Qxc4 $2 {perishes.} Qf2 $19) 39... Kf8 40. Qxe6 cxb3) 39. Qxc4+ $18 {[%emt 0:00:10]} Kg7 {[%emt 0:00:23]} 40. Qd3 {[%emt 0:00:36] Prevents Nf3+.} Nf3+ {[%emt 0:04:13]} (40... Qxd3 41. Bxd3 Kf8) 41. Qxf3 {[%emt 0:00:02] [#] aiming for Qd3. White is clearly winning.} Qxc2 {[%emt 0:00:07]} 42. b4 {[%emt 0:00:20]} f5 {[%emt 0:00:23]} 43. exf5 {[%emt 0:01:03]} e4 {[%emt 0:00:42]} 44. Qf4 {[%emt 0:01:56]} gxf5 {[%emt 0:06:33]} 45. Qg5+ {[%emt 0:00:16] Weighted Error Value: White=0.06 (flawless) /Black=0.30.  Loses game:     	---       	Black=1      Mistake:       	White=1     	Black=2      OK:         	White=17    	Black=5      Best:        	White=2     	---} 1-0